Cogmind - Beta 11.2 @@@ ROGUE MODE // 2023.01.12 @ 09:30:25 Player: yota99 Result: Destroyed self with Grenade Launcher Performance ------------- Evolutions (0) 0 Regions Visited (1) 200 Robots Destroyed (24) 120 Value Destroyed (319) 319 Prototype IDs (2) 40 Alien Tech Used (0) 0 Bonus (0) 0 TOTAL SCORE: 679 Bonus ------- None Cogmind --------- Core Integrity 0/250 Matter 24/300 Energy 153/250 System Corruption 0% Temperature Cool (32) Movement Rolling (130) Ox2 Location -10/Materials Parts ------- > --- POWER (1) -------- Ion Engine > --- PROPULSION (2) --- Compact Wheel Compact Wheel > --- UTILITY (2) ------ Huge Storage Unit Seismic Detector > --- WEAPON (2) ------- Assault Rifle Grenade Launcher > --- INVENTORY (25) --- Wheel Wheel Improved Heat Sink Sensor Array Seismic Detector Transport Network Coupler Targeting Computer Targeting Computer Targeting Computer Targeting Computer Targeting Computer Light Armor Plating Hacking Suite EM Pulse Gun Beam Cannon Assault Rifle Assault Rifle Datajack Peak State ------------ > --- POWER ------------ Ion Engine > --- PROPULSION ------- Compact Wheel Compact Wheel > --- UTILITY ---------- Huge Storage Unit Seismic Detector > --- WEAPON ----------- Assault Rifle Assault Rifle > --- INVENTORY -------- Ion Engine Wheel Wheel Improved Heat Sink Sensor Array Seismic Detector Transport Network Coupler Targeting Computer Targeting Computer Targeting Computer Targeting Computer Targeting Computer Light Armor Plating Hacking Suite EM Pulse Gun Beam Cannon Assault Rifle Grenade Launcher Datajack [Rating: 9] Favorites ----------- Power Ion Engine Engine Ion Engine Propulsion Compact Wheel Wheel Compact Wheel Utility Seismic Detector Device Seismic Detector Storage Huge Storage Unit Weapon Assault Rifle Energy Gun Small Laser Ballistic Gun Assault Rifle Launcher Grenade Launcher Special Melee Weapon Datajack Build | -11 -10 ------- Run | Scr Mat Slots Evolved . | . . Power . | . . Propulsion . | . . Utility . | . . Weapon . | . . Parts Attached 20 | 7 13 Power 2 | 1 1 Engine 2 | 1 1 Core . | . . Reactor . | . . Propulsion 4 | 2 2 Treads . | . . Leg . | . . Wheel 4 | 2 2 Hover . | . . Flight . | . . Utility 5 | 2 3 Device 2 | 1 1 Storage 3 | 1 2 Processor . | . . Hackware . | . . Protection . | . . Artifact . | . . Weapon 9 | 2 7 Energy Gun 1 | 1 . Energy Cannon . | . . Ballistic Gun 6 | 1 5 Ballistic Cannon . | . . Launcher 1 | . 1 Special Weapon . | . . Impact Weapon . | . . Slashing Weapon . | . . Piercing Weapon . | . . Special Melee Weapon 1 | . 1 Unidentified Prototypes . | . . Parts Lost 5 | . 5 Power 1 | . 1 Propulsion 2 | . 2 Utility 1 | . 1 Weapon 1 | . 1 Highest Loss Streak 3 | . 3 To Critical Strikes . | . . Average Slot Usage (%) 95 | . 95 Engine 13 | . 13 Wheel 26 | . 26 Device 12 | . 12 Storage 14 | . 14 Energy Gun 1 | . 1 Ballistic Gun 24 | . 24 Naked Turns . | . . Heaviest Build 90 | 13 90 Greatest Support 32 | 26 32 Greatest Overweight (x) 5 | . 5 Average Overweight (x) 1 | . 2 Largest Inventory Capacity 25 | 8 25 Average Capacity 20 | 7 22 Most Carried 22 | 8 22 Average Carried 13 | 4 14 Final Capacity 25 | 8 25 Final Carried 18 | 7 18 Class Distribution -------------------- 100% | Mutant Dominant Class ---------------- Mutant | -10/Materials Resources | -11 -10 ----------- Run | Scr Mat Matter Collected 505 | 279 226 Remotely . | . . Salvage Created 566 | 100 466 Parts 51 | 10 41 Haulers Intercepted 2 | . 2 Recyclers Shooed 1 | . 1 Parts Field Recycled . | . . Retrieved Matter . | . . Parts Self-Destructed . | . . Prevented . | . . Kills | -11 -10 ------- Run | Scr Mat Combat Hostiles Destroyed 8 | . 8 Guns 5 | . 5 AOE 3 | . 3 Classes Destroyed 8 | 2 6 Worker 5 | . 5 Tunneler 3 | 3 . Hauler 2 | . 2 Recycler 2 | 1 1 Operator 1 | . 1 Watcher 3 | . 3 Swarmer 3 | . 3 Grunt 5 | . 5 Best Kill Streak 6 | 4 6 Combat Bots Only 3 | . 3 Max Kills in Single Turn 2 | 1 2 Gunslinging . | . . Exploded 1 | . 1 Melee . | . . Uniques/NPCs Destroyed . | . . Combat | -11 -10 -------- Run | Scr Mat Damage Taken 810 | . 810 Core 253 | . 253 Absorbed by Shields . | . . Core Remaining (%) 100 | 100 . Volleys Fired 83 | 9 74 Largest 2 | 2 2 Hottest 60 | 60 60 Shots Fired 147 | 18 129 Gun 142 | 18 124 Cannon . | . . Launcher 5 | . 5 Special . | . . Kinetic 128 | 9 119 Thermal 14 | 9 5 Explosive 5 | . 5 Electromagnetic . | . . Robot Hit Streak 11 | 8 11 Robot Miss Streak 6 | 1 6 Penetration Max . | . . Secondary Targets . | . . Shots Hit Robots 82 | 12 70 Core Hits 38 | 6 32 Critical Kills . | . . Critical Parts Destroyed . | . . Critical Strikes . | . . Melee Attacks . | . . Impact . | . . Slashing . | . . Piercing . | . . Sneak Attacks . | . . Combat Hostiles . | . . Follow-up Attacks . | . . Damage Inflicted 1409 | 118 1291 Guns 1005 | 118 887 Cannons . | . . Explosions 404 | . 404 Melee . | . . Ramming . | . . Kinetic 865 | 29 836 Thermal 140 | 89 51 Explosive 404 | . 404 Electromagnetic . | . . Impact . | . . Slashing . | . . Piercing . | . . Highest Corruption . | . . Average Corruption . | . . Corruption Purged . | . . Corruption Blocked . | . . Overload Shots . | . . Overflow Damage 13 | . 13 Projectiles . | . . Explosions 13 | . 13 Melee . | . . Knockbacks . | . . Impact . | . . Kinetic . | . . Secondary . | . . Self-Inflicted Damage 14 | . 14 Shots 1 | . 1 Rammed . | . . Targets Rammed . | . . Kicked . | . . Crushed . | . . Highest Temperature 60 | 60 40 Average Temperature 22 | 28 17 Received Heat Transfer 279 | . 279 Siege Activations . | . . Robots Corrupted . | . . Combat Hostiles . | . . Parts Fried . | . . Impact Corruptions . | . . Robots Melted . | . . Combat Hostiles . | . . Parts Melted . | . . Heat Transferred 325 | 200 125 Parts Sabotaged . | . . Parts Stolen . | . . Parts Stripped . | . . Power Chain Reactions . | . . Missiles Intercepted . | . . Alert | -11 -10 ------- Run | Scr Mat Peak Influence 160 | 20 160 Initial 13 | . 13 Average 52 | 8 59 Maximum Alert Level . | . . Low Security (%) 100 | 100 100 Level 1 . | . . Level 2 . | . . Level 3 . | . . Level 4 . | . . Level 5 . | . . High Security . | . . Max Security . | . . Squads Dispatched 2 | . 2 Investigation 1 | . 1 Extermination . | . . Reinforcement 1 | . 1 Assault . | . . Garrison . | . . Intercept . | . . Searches Triggered . | . . Construction Impeded . | . . Haulers Reinforced . | . . Active Scanning Responses . | . . Cargo Convoy Interrupts . | . . Stealth | -11 -10 --------- Run | Scr Mat Distress Signals . | . . Communications Jammed . | . . Distress Signals . | . . Times Spotted 18 | . 18 Peak Tracking Total 4 | . 4 Tactical Retreats 1 | . 1 Traps | -11 -10 ------- Run | Scr Mat Traps Triggered 2 | . 2 Indirectly . | . . Trap Hack Attempts . | . . Triggered . | . . Disarmed . | . . Reprogrammed . | . . Reused . | . . Traps Extracted . | . . Installed . | . . Triggered . | . . Machines | -11 -10 ---------- Run | Scr Mat Machines Disabled . | . . Max in Single Turn . | . . Machines Sabotaged . | . . Garrisons Compromised . | . . Overloaded Fab Kills . | . . Hacking | -11 -10 --------- Run | Scr Mat Machines Accessed 3 | . 3 Terminals 3 | . 3 Fabricators . | . . Repair Stations . | . . Recycling Units . | . . Scanalyzers . | . . Garrison Access . | . . Total Hacks 5 | . 5 Successful 3 | . 3 Failed 2 | . 2 Catastrophic . | . . Database Lockouts . | . . Manual 3 | . 3 Terminals 5 | . 5 Fabricators . | . . Repair Stations . | . . Recycling Units . | . . Scanalyzers . | . . Garrison Access . | . . Terminal Hacks 3 | . 3 Robot Analysis 1 | . 1 Prototype ID Bank 1 | . 1 Registered Components 1 | . 1 Fabricator Hacks . | . . Repair Station Hacks . | . . Recycling Unit Hacks . | . . Scanalyzer . | . . Garrison Access Hacks . | . . Unauthorized Hacks . | . . Terminals . | . . Fabricators . | . . Repair Stations . | . . Recycling Units . | . . Scanalyzers . | . . Garrison Access . | . . Data Cores Recovered . | . . Used . | . . Hacking Detections 1 | . 1 Full Trace Events . | . . Feedback Events . | . . Feedback Blocked . | . . Robot Schematics Acquired . | . . Robots Built . | . . Authchips . | . . Time . | . . Total Robot Build Rating . | . . Part Schematics Acquired . | . . Parts Built . | . . Authchips . | . . Time . | . . Total Part Build Rating . | . . Parts Repaired . | . . Time . | . . Parts Recycled . | . . Recycled Matter . | . . Retrieved Matter . | . . Retrieved Components . | . . Parts Scanalyzed . | . . Part Schematics Acquired . | . . Parts Damaged . | . . Bothacking | -11 -10 ------------ Run | Scr Mat Used RIF Installer . | . . Robots Hacked . | . . Non-combat . | . . Combat . | . . Robot Hacks Applied . | . . Relay Couplers Released . | . . Fabnet Peak Effective % . | . . Robots Rewired . | . . Allies Hacked . | . . Hacks Repelled . | . . Allies | -11 -10 -------- Run | Scr Mat Total Allies . | . . Largest Group . | . . Highest-Rated Group . | . . Highest-Rated Ally . | . . Total Orders . | . . Ally Attacks . | . . Total Damage . | . . Kills . | . . Allies Corrupted . | . . Allies Melted . | . . Intel | -11 -10 ------- Run | Scr Mat Robot Analysis Total 1 | . 1 Derelict Logs Recovered . | . . Drone Launches . | . . Drone Recoveries . | . . Exploration | -11 -10 ------------- Run | Scr Mat Turns Passed 928 | 117 811 Spaces Moved 532 | 76 456 Core 8 | 8 . Treads . | . . Legs . | . . Wheels 524 | 68 456 Hover . | . . Flight . | . . Fastest Speed 50 | 50 90 Average Speed 116 | 85 122 Slowest Speed 175 | 90 175 Overloaded Moves . | . . Propulsion Burnouts . | . . Robots Hopped . | . . Cave-ins Triggered . | . . Exploration Rate (%) 33 | 3 64 Regions Visited 1 Branch Regions . Pre-discovered Areas . | . . Known Exits Taken . | . . Unknown Exits Taken 1 | 1 . Scrap Searched . | . . Spaces Dug . | . . Terrain Destroyed 14 | . 14 Melee . | . . Projectile . | . . AOE 14 | . 14 Terrain Rammed . | . . Walls Destroyed . | . . Machines Disabled . | . . Actions | -11 -10 --------- Run | Scr Mat Total 695 | 111 584 Wait 19 | 2 17 Move 531 | 75 456 Hop . | . . Pick Up 32 | 14 18 Fast Attach 5 | 4 1 Attach 9 | 3 6 Detach . | . . Swap 6 | . 6 Drop 10 | 4 6 Fire 83 | 9 74 Melee . | . . Ram . | . . Kick . | . . Crush . | . . Escape Stasis . | . . Rewire . | . . Trap . | . . Miscellaneous . | . . Route ------- -11/Scrapyard -10/Materials (discovered 3 exits: [*Mat x2] / [*Min]) History --------- Turn | Location | Event 6 | -11/Scrapyard | Discovered new exit (range 16) 118 | -11/Scrapyard | Entered Materials 200 | -10/Materials | Discovered new exit (range 14) 314 | -10/Materials | Build established: Mutant 572 | -10/Materials | Discovered new exit (range 13) 683 | -10/Materials | Discovered new exit (range 11) 813 | -10/Materials | Lost 3 parts (1n1u1w) 922 | -10/Materials | Core integrity fell below 50% 922 | -10/Materials | Core integrity fell below 20% 929 | -10/Materials | Destroyed self with Grenade Launcher Last Messages --------------- 00902_ Ion Engine destroyed. 00903_ G-34 Mercenary destroyed. 00903_ K-01 Serf collects debris. 00907_ R-06 Scavenger collects Lgt. Treads. 00908_ R-06 Scavenger destroyed. 00909_ K-01 Serf collects debris. 00921_ Fusion Modulator explodes. 00921_ K-01 Serf destroyed. 00921_ K-01 Serf collects debris. 00923_ G-34 Mercenary destroyed. 00923_ U-05 Engineer lays Concrete. 00924_ K-01 Serf collects debris. 00924_ U-05 Engineer lays Concrete. 00925_ K-01 Serf destroyed. 00925_ U-05 Engineer lays Concrete. 00927_ The unstable cave ceiling collapses. 00927_ G-34 Mercenary destroyed. 00927_ Destroyed Ion Engine. 00928_ U-05 Engineer lays Concrete. 00929_ G-34 Mercenary destroyed. Map ----- +----------------------------------------------------+ | ???# #?????????????????????????????????? | | #### +?????????????????????????????????? | | ##[ #?????????????????????????????????? | | +* = #?????????????????????????????????? | | ## % #?????????????????????????????????? | | #########= #?????????????????????????????????? | | #???????# #?????????????????????????????????? | | #???????#* #?????????????????????????????????? | | #???????#% +?????????????????????????????????? | | ########### #?????????????????????????????????? | | #?????????????????????????????????? | | ^ #?????????????????????????????????? | | = #?????????????????????????????????? | | ######## #?????????????????????????????????? | | ######## #?????????????????????????????????? | | ## #?????????????????????????????????? | | ## #?????????????????????????????????? | | " """ ## #?????????????????????????????????? | | " """ ## #??????######??????? #????????????? | | " """ ## #?????##!!!!##????? #????????????? | | ## #?????#! !##### #????????????? | | ## #????##! !# #????????????? | | + ######; #????????????? | | ######## =%= !g # ""?????????? | | ???????# * % ""?????????? | | ???????# @ = #????????????? | | ???????############; = #????????????? | | ??????????????????#; m #????????????? | | ??????????????????#; = | #????????????? | | ??????????????????## [ != #????????????? | | ???????????????????# u [ #????????????? | | ???????????????????# %* ???????????? | | ????????#+#####????# = #####??????????? | | ???????# ????? #?????????????? | | ######## ????? #?????????????? | | # # ????? #?????????????? | | # """ "# #?????########## %! # ?????????????? | | # """ T# #???????????????###= # ?????????????? | | + """ "# #??????????????????*%=???????????????? | | # # #????????????????????????????????????? | | # + #????????????????????????????????????? | | ######## #????????????????????????????????????? | | # #????????????????????????????????????? | | """ # #????????????????????????????????????? | | """ + #????????????????????????????????????? | | = """ # #????????????????????????????????????? | | # #????????????????????????????????????? | | ?# #????????????????????????????????????? | | ######?# #????????????????????????????????????? | | #####??# #????????????????????????????????????? | +----------------------------------------------------+ Best States ------------- Heat Dissipation 25 Energy Generation 10 Energy Capacity 250 Matter Stores 300 Matter Capacity 300 Sight Range 16 Terrain Scan Density 10 Evasion (%) 42 Item Schematics ----------------- None Robot Schematics ------------------ None Fabricated ------------ Nothing Alien Tech Used ----------------- None Achievements -------------- None Challenges ------------ None Game ------ Seed ArmageddonMetafiberCompactor Manual? 0 Play Time 00:09:20 Cumulative 37.8 hours Start 2023.01.12 @ 09:22:24 End 2023.01.12 @ 09:30:25 Sessions 1 Manual Loads 0 Difficulty Rogue Special Mode None Game No. 57 Rogue 57 Adventurer 0 Explorer 0 Win Type - Total 0 Types 0/0/0/0/0/0/0/0/0 Lore% 21 Gallery% 30 Achievement% 27 Wizard Run 0 Options --------- ASCII 0 Keyboard 0 Movement Numpad Keybinds 0 Fullscreen 2 Font 24/Terminus Map View 76x50 Tactical HUD 1 Map Filters NONE Filters NONE Steam 1 RUN: 193320dd-22d4-4557-9ba3-f8d2cf5ba93b